bitfinex-derivatives/quotes_SOLF0:USTF0_20251101
["timestamp","ask_amount","ask_price","bid_price","bid_amount"]
[1761993953630,7.07813828,186.13,186.1,7.04309673]
[1761993953834,4.34813828,186.12,186.11,7.04309673]
[1761993955441,4.34813828,186.12,186.11,8.87432077]
[1761993956244,4.34813828,186.12,186.11,13.8979977]
[1761993959851,4.34813828,186.12,186.11,8.87432077]
[1761993963446,4.34813828,186.12,186.11,7.04309673]
[1761993964860,4.34813828,186.12,186.11,13.74133264]
[1761993969165,4.34813828,186.12,186.11,7.04309673]
[1761993975272,4.34813828,186.12,186.11,7.05777813]
[1761993976876,2.73,186.16,186.11,7.05777813]
[1761993977076,7.20631444,186.15,186.12,10.93242172]
[1761993977267,4.35631444,186.14,186.13,4.23759512]
[1761993977468,4.35631444,186.14,186.13,7.04759512]
[1761993978373,3.67902619,186.14,186.13,7.04759512]
[1761993978969,3.67902619,186.14,186.13,8.12759512]
[1761993980866,2.85,186.2,186.14,2.78]
[1761993981073,2.85,186.2,186.18,5.01650733]
[1761993981277,2.85,186.2,186.19,4.23759512]
[1761993988583,2.85,186.2,186.19,7.01759512]
[1761993989085,2.85933586,186.26,186.19,12.03410245]
[1761993989086,2.86,186.25,186.19,12.03410245]
[1761993989277,2.86,186.25,186.2,4.23759512]
[1761993989478,2.86,186.25,186.21,4.23759512]
[1761993989680,2.86,186.25,186.22,4.23759512]
[1761993989878,2.86,186.25,186.23,4.23759512]
[1761993990078,2.86,186.25,186.19,7.79650733]
[1761993990383,2.86,186.25,186.2,4.24067155]
[1761993990682,2.86,186.25,186.21,4.24067155]
[1761993990878,2.86,186.25,186.22,4.24067155]
[1761993991183,2.86,186.25,186.23,4.24067155]
[1761993991378,2.86,186.25,186.19,2.78]
[1761993991583,2.86,186.25,186.2,4.23916891]
[1761993991884,2.86,186.25,186.21,4.23916891]
[1761993992182,2.86,186.25,186.22,4.23916891]
[1761993992378,2.86,186.25,186.18,5.01650733]
[1761993992579,2.86,186.25,186.19,4.23846615]
[1761993992780,2.86,186.25,186.2,4.23846615]
[1761993993084,2.86,186.23,186.16,5.01650733]
[1761993993280,2.85933586,186.26,186.17,4.23959847]
[1761993993281,2.86,186.21,186.17,4.23959847]
[1761993993481,2.86,186.19,186.18,4.23959847]
[1761993993685,7.11775093,186.19,186.18,4.23959847]
[1761993998379,9.97708679,186.19,186.18,4.23959847]
[1761994001587,7.11775093,186.19,186.18,4.23959847]
[1761994002194,4.25775093,186.19,186.18,7.01959847]
[1761994003183,6.93775093,186.19,186.18,4.23959847]
[1761994007103,6.94122068,186.19,186.18,4.23959847]
[1761994009008,4.26122068,186.19,186.18,6.95959847]
[1761994011908,7.13122068,186.19,186.18,4.23959847]
[1761994012711,4.26462823,186.19,186.18,6.95959847]
[1761994020711,4.26462823,186.19,186.18,11.9761058]
[1761994022711,4.26462823,186.19,186.18,6.95959847]
[1761994023017,4.26462823,186.19,186.18,11.9693955]
[1761994026314,1.82958319,186.2,186.18,11.9693955]
[1761994026618,4.26943426,186.19,186.18,7.72979703]
[1761994026819,4.26943426,186.19,186.18,11.95562289]
[1761994034223,4.26943426,186.19,186.18,6.94582586]
[1761994034424,4.26943426,186.19,186.18,11.9531728]
[1761994035427,4.26943426,186.19,186.18,6.94582586]
[1761994035923,4.26943426,186.19,186.18,11.95383387]
[1761994036525,4.26943426,186.19,186.18,6.94582586]
[1761994036825,7.13943426,186.19,186.18,4.22582586]
[1761994037321,7.13943426,186.19,186.18,9.23504527]
[1761994037521,7.13943426,186.19,186.18,4.22582586]
[1761994037721,7.13943426,186.19,186.18,7.08582586]
[1761994037928,7.13943426,186.19,186.18,4.22582586]
[1761994038622,7.13943426,186.19,186.18,7.08582586]
[1761994039219,4.26943426,186.19,186.18,7.08582586]
[1761994041124,7.14943426,186.19,186.18,7.08582586]
[1761994041825,7.15877533,186.19,186.18,4.22582586]
[1761994044722,7.15877533,186.19,186.18,6.93582586]
[1761994044927,7.15877533,186.19,186.18,11.94504527]
[1761994044928,4.27877533,186.19,186.18,11.94504527]
[1761994046024,4.27877533,186.19,186.18,6.93582586]
[1761994046525,4.27877533,186.19,186.18,11.94504527]
[1761994046728,7.15877533,186.19,186.18,11.94504527]
[1761994046932,7.15877533,186.19,186.18,6.93582586]
[1761994048525,4.27877533,186.19,186.18,6.93582586]
[1761994048732,4.27877533,186.19,186.18,11.94504527]
[1761994048919,4.27877533,186.19,186.18,6.93582586]
[1761994050424,4.27877533,186.19,186.18,11.94504527]
[1761994053435,4.27877533,186.19,186.18,6.93582586]
[1761994055527,4.27877533,186.19,186.18,11.95198392]
[1761994055733,4.27877533,186.19,186.18,13.6245023]
[1761994056431,4.27877533,186.19,186.18,6.93582586]
[1761994057541,4.27877533,186.19,186.18,13.6245023]
[1761994058837,4.27877533,186.19,186.18,6.93582586]
[1761994061239,4.27877533,186.19,186.18,11.94842771]
[1761994067144,2.88,186.22,186.18,11.94842771]
[1761994067342,7.1864961,186.21,186.19,4.22582586]
[1761994067540,4.2764961,186.2,186.19,2.87]
[1761994067739,4.2764961,186.2,186.19,6.98373005]
[1761994068848,4.2764961,186.2,186.19,11.9963319]
[1761994069439,4.2764961,186.2,186.19,6.98373005]
[1761994069839,4.2764961,186.2,186.19,2.87]
[1761994070038,4.2764961,186.2,186.19,6.9830361]
[1761994071544,4.2764961,186.2,186.19,11.99393178]
[1761994075343,4.2764961,186.2,186.19,6.9830361]
[1761994080243,4.2764961,186.2,186.19,11.99262168]
[1761994081745,4.2764961,186.2,186.19,6.9830361]
[1761994081947,4.2764961,186.2,186.19,11.99262168]
[1761994082745,4.2764961,186.2,186.19,6.9830361]
[1761994089557,4.2764961,186.2,186.19,2.87]
[1761994089757,4.2764961,186.2,186.19,6.98750132]
[1761994095368,4.2764961,186.2,186.19,13.67617776]
[1761994106079,4.2764961,186.2,186.19,6.98750132]
[1761994106279,4.2764961,186.2,186.19,13.67617776]
[1761994110080,7.0364961,186.2,186.19,13.67617776]
[1761994110474,4.2764961,186.2,186.19,13.67617776]
[1761994112873,7.0364961,186.2,186.19,4.11750132]
[1761994113376,7.0364961,186.2,186.19,9.13096185]
[1761994118287,7.0364961,186.2,186.19,4.11750132]
[1761994118488,7.0364961,186.2,186.19,9.13096185]
[1761994118785,7.0364961,186.2,186.19,4.11750132]
[1761994119188,7.0364961,186.2,186.19,9.13096185]
[1761994119378,7.0364961,186.2,186.19,4.11750132]
[1761994136901,7.0364961,186.2,186.18,2.68]
[1761994137103,4.2764961,186.19,186.18,2.68]
[1761994137602,4.2764961,186.19,186.18,7.69346053]
[1761994138403,4.2764961,186.19,186.18,2.68]
[1761994139702,2.87,186.23,186.18,2.68]
[1761994139910,2.87,186.21,186.19,7.68232429]
[1761994140205,4.78366217,186.2,186.19,7.68232429]
[1761994141505,7.65366217,186.2,186.19,5.00232429]
[1761994141706,2.87,186.19,186.17,5.00232429]
[1761994141914,2.87,186.17,186.15,5.00232429]
[1761994142208,7.65366217,186.16,186.15,5.00232429]
[1761994142410,7.65366217,186.16,186.14,5.00232429]
[1761994142610,7.65366217,186.15,186.14,5.00232429]
[1761994142812,2.87,186.14,186.13,5.00232429]
[1761994143008,2.87,186.13,186.12,5.00232429]
[1761994143202,2.87,186.12,186.09,5.00232429]
[1761994143402,2.87,186.1,186.09,5.00232429]
[1761994143701,7.65366217,186.1,186.08,5.00232429]
[1761994143901,4.78366217,186.09,186.08,2.68]
[1761994146308,4.78366217,186.09,186.08,7.68232429]
[1761994146513,4.78366217,186.09,186.08,3.76]
[1761994151819,4.70039716,186.16,186.09,2.68]
[1761994152018,4.70039716,186.16,186.11,2.68]
[1761994152019,4.7731935,186.15,186.11,2.68]
[1761994152312,4.7731935,186.14,186.11,2.68]
[1761994152518,4.7731935,186.13,186.11,2.68]
[1761994152717,4.7731935,186.12,186.11,2.68]
[1761994156226,4.77409244,186.12,186.11,2.68]
[1761994156421,4.77409244,186.12,186.11,3.76]
[1761994156619,1.96169234,186.12,186.11,10.44867644]
[1761994157023,2.81,186.19,186.12,2.88]
[1761994157221,2.81,186.19,186.15,2.88]
[1761994159439,2.81,186.19,186.14,4.99196321]
[1761994159622,2.81,186.19,186.15,2.88]
[1761994167334,2.95,186.21,186.15,2.88]
[1761994168939,2.95,186.19,186.15,2.88]
[1761994169136,7.62407256,186.18,186.15,2.88]
[1761994169434,4.67407256,186.17,186.15,2.88]
[1761994169630,4.67407256,186.16,186.15,2.88]
[1761994170638,4.67407256,186.16,186.15,7.87196321]
[1761994183741,7.62407256,186.16,186.15,4.99196321]
[1761994183936,7.62407256,186.16,186.13,4.99196321]
[1761994183937,2.95,186.15,186.13,4.99196321]
[1761994184138,4.67407256,186.14,186.13,7.87196321]
[1761994186550,4.6717633,186.14,186.13,7.87196321]
[1761994189251,4.6717633,186.14,186.13,2.88]
[1761994190052,4.6717633,186.14,186.13,7.87105958]
[1761994191255,4.6717633,186.14,186.13,2.88]
[1761994194153,2.7,186.21,186.13,2.88]
[1761994194358,7.35783751,186.2,186.17,7.82499981]
[1761994194556,4.65783751,186.19,186.17,7.82499981]
[1761994194862,4.65783751,186.18,186.17,7.82499981]
[1761994196355,4.65783751,186.18,186.17,2.83]
[1761994200759,7.35783751,186.18,186.16,6.65999974]
[1761994201053,7.35783751,186.17,186.15,9.48999974]
[1761994201255,1.83039716,186.23,186.15,9.48999974]
[1761994201256,4.65783751,186.16,186.15,9.48999974]
[1761994201852,7.35783751,186.16,186.15,6.65999974]
[1761994202157,2.7,186.15,186.14,6.65999974]
[1761994202365,4.65783751,186.15,186.14,9.48999974]
[1761994202758,8.98366821,186.15,186.14,9.48999974]
[1761994204455,11.68366821,186.15,186.14,6.65999974]
[1761994204851,11.68366821,186.15,186.13,6.65999974]
[1761994204852,2.7,186.14,186.13,6.65999974]
[1761994205048,11.68366821,186.14,186.12,6.65999974]
[1761994205254,11.68366821,186.13,186.12,6.65999974]
[1761994207265,2.7,186.12,186.11,6.65999974]
[1761994207465,11.68366821,186.12,186.1,6.65999974]
[1761994207667,11.68366821,186.12,186.08,12.87735387]
[1761994207668,2.7,186.1,186.08,10.04735387]
[1761994207867,2.7,186.1,186.09,6.66853735]
[1761994208067,11.79141139,186.1,186.09,6.66853735]
[1761994208658,11.79141139,186.1,186.08,6.66853735]
[1761994208860,9.09141139,186.09,186.08,6.66853735]
[1761994209454,9.09141139,186.09,186.08,9.49853735]
[1761994213158,9.09141139,186.09,186.08,2.83]
[1761994213767,4.66330658,186.09,186.08,9.49853735]
[1761994216064,2.81,186.13,186.08,9.49853735]
[1761994216262,11.88374954,186.12,186.1,4.99125478]
[1761994216462,9.07374954,186.11,186.1,4.99125478]
[1761994217572,11.88374954,186.11,186.1,4.99125478]
[1761994217969,2.81,186.1,186.09,4.99125478]
[1761994218171,11.88374954,186.1,186.09,4.99125478]
[1761994220177,2.81,186.09,186.07,4.99125478]
[1761994220372,11.85374954,186.08,186.07,4.99125478]
[1761994220963,4.65426228,186.08,186.07,7.76125478]
[1761994221164,2.78,186.11,186.07,2.77]
[1761994221364,2.78,186.11,186.09,7.7588125]
[1761994221365,9.06787738,186.1,186.09,7.7588125]
[1761994221573,4.65103214,186.1,186.09,2.77]
[1761994225477,4.65116095,186.1,186.09,2.77]
[1761994226468,2.78,186.09,186.07,6.66853735]
[1761994226682,2.78,186.09,186.08,4.98532015]
[1761994226880,11.84911629,186.09,186.08,4.98532015]
[1761994227380,9.06911629,186.09,186.08,4.98532015]
[1761994227881,9.06911629,186.09,186.08,7.75532015]
[1761994229581,4.65165339,186.09,186.08,2.77]
[1761994229883,2.78,186.12,186.08,2.77]
[1761994230084,9.06828866,186.11,186.1,2.77]
[1761994230687,9.06828866,186.11,186.1,7.75358996]
[1761994233690,4.65132756,186.11,186.1,2.77]
[1761994233891,2.78,186.18,186.11,2.77]
[1761994234092,2.86067415,186.21,186.13,2.77]
[1761994234093,2.78,186.16,186.13,2.77]
[1761994234289,9.06697853,186.15,186.13,2.77]
[1761994234488,9.06697853,186.14,186.13,2.77]
[1761994234793,9.06697853,186.14,186.13,7.7512656]
[1761994237000,4.65096652,186.14,186.13,7.7512656]
[1761994239005,7.43096652,186.14,186.13,4.9812656]
[1761994240410,11.82915504,186.14,186.13,4.9812656]
[1761994240703,9.04915504,186.14,186.13,4.9812656]
[1761994241309,9.04915504,186.14,186.12,75.19]
[1761994241607,4.65096652,186.13,186.12,75.19]
[1761994246417,4.65096652,186.13,186.12,81.85853735]
[1761994252120,4.65096652,186.13,186.12,75.19]
[1761994256923,4.65096652,186.13,186.12,81.85853735]
[1761994261927,2.74,186.2,186.13,2.77]
[1761994262126,2.74,186.18,186.15,4.98241556]
[1761994262429,11.79570962,186.17,186.16,75.7]
[1761994262629,11.79570962,186.17,186.16,80.68241556]
[1761994267229,9.05570962,186.17,186.16,83.45241556]
[1761994267430,9.05570962,186.17,186.16,78.47]
[1761994268118,4.65480649,186.17,186.16,78.47]
[1761994269930,8.9974634,186.17,186.16,78.47]
[1761994278031,4.34265691,186.17,186.16,80.29864077]
[1761994278232,2.67,186.26,186.21,2.87]
[1761994278426,2.67,186.26,186.23,7.85296707]
[1761994278628,2.67,186.26,186.24,75.84]
[1761994279435,2.67,186.26,186.25,1.82864077]
[1761994279733,2.67,186.25,186.22,6.81160784]
[1761994279940,2.67,186.25,186.23,75.84]
[1761994280326,2.88,186.24,186.23,75.84]
[1761994281037,2.88,186.31,186.23,78.54]
[1761994281237,2.88,186.31,186.24,1.82864077]
[1761994284134,2.88,186.31,186.23,78.54]
[1761994284338,2.88,186.31,186.25,1.82864077]
[1761994285534,2.88,186.31,186.25,4.52864077]
[1761994285834,2.88,186.31,186.23,75.84]
[1761994286040,2.88,186.31,186.26,1.82864077]
[1761994286339,2.88,186.31,186.23,75.84]
[1761994286637,2.88,186.31,186.26,1.82864077]
[1761994290036,4.31678449,186.3,186.26,1.82864077]
[1761994290340,2.88,186.28,186.26,1.82864077]
[1761994290537,8.59389145,186.27,186.26,1.82864077]
[1761994294851,8.59389145,186.27,186.26,4.52864077]
[1761994296551,11.47389145,186.27,186.26,1.82864077]
[1761994297143,8.59389145,186.27,186.26,4.52864077]
[1761994298950,11.47389145,186.27,186.26,1.82864077]
[1761994301548,8.59389145,186.27,186.26,4.52864077]
[1761994303156,4.31678449,186.27,186.26,4.52864077]
[1761994303757,7.19678449,186.27,186.24,4.98296707]
[1761994303964,2.88,186.25,186.23,11.17183526]
[1761994304149,2.88,186.25,186.24,75.72]
[1761994304350,7.19517385,186.25,186.24,75.72]
[1761994305466,2.88,186.25,186.24,75.72]
[1761994306155,7.1955001,186.25,186.24,75.72]
[1761994310360,2.88,186.25,186.24,75.72]
[1761994310564,7.19726565,186.25,186.24,75.72]
[1761994311162,2.73,186.24,186.23,14.32616156]
[1761994311361,7.04726565,186.24,186.23,85.04319449]
[1761994312265,11.22004243,186.24,186.23,85.04319449]
[1761994313160,11.22004243,186.24,186.23,90.02616156]
[1761994314568,8.49004243,186.24,186.23,92.71616156]
[1761994315563,8.49166122,186.24,186.23,92.71616156]
[1761994315969,4.31726565,186.24,186.23,92.71616156]
[1761994316164,2.73,186.3,186.24,2.69]
[1761994316364,2.73,186.28,186.25,7.66531011]
[1761994316564,11.22560798,186.27,186.26,75.7]
[1761994317164,8.49560798,186.27,186.26,78.39]
[1761994318467,8.49560798,186.27,186.26,80.67531011]
[1761994320973,8.49560798,186.27,186.26,83.36531011]
[1761994321569,8.49560798,186.27,186.26,78.39]
[1761994326178,11.22560798,186.27,186.26,75.74]
[1761994327073,11.22560798,186.27,186.26,75.72]
[1761994327470,8.49560798,186.27,186.26,78.41]
[1761994332085,8.49560798,186.27,186.26,85.05395609]
[1761994334295,8.6477715,186.27,186.26,85.05395609]
[1761994334584,8.6477715,186.27,186.26,78.41]
[1761994335373,2.73,186.35,186.27,2.69]
[1761994335573,11.38246711,186.34,186.32,7.67215429]
[1761994335773,2.73,186.34,186.33,75.78]
[1761994336077,11.38246271,186.34,186.33,75.78]
[1761994337290,11.53246271,186.34,186.33,75.78]
[1761994338690,8.65246271,186.34,186.33,75.78]
[1761994338890,11.53246271,186.34,186.33,75.78]
[1761994341296,8.65246271,186.34,186.33,78.65]
[1761994341594,11.51246271,186.34,186.33,75.78]
[1761994343997,8.65246271,186.34,186.33,78.65]
[1761994347691,4.32539161,186.34,186.33,78.65]
[1761994348397,8.64531044,186.34,186.33,75.78]
[1761994348697,11.50531044,186.34,186.33,75.76]
[1761994350798,8.64531044,186.34,186.33,75.76]
[1761994351499,8.64531044,186.34,186.33,78.63]
[1761994354593,8.62781244,186.34,186.33,78.63]
[1761994364522,8.62781244,186.34,186.33,78.57]
[1761994367113,8.62781244,186.34,186.33,83.53414916]
[1761994367321,8.58643003,186.34,186.33,83.53414916]
[1761994367920,4.31991883,186.34,186.33,83.53414916]
[1761994368124,2.86,186.4,186.34,2.88]
[1761994368422,8.58939535,186.39,186.36,2.88]
[1761994368617,8.58939535,186.38,186.36,2.88]
[1761994368819,8.58939535,186.37,186.36,2.88]
[1761994374232,8.58939535,186.37,186.36,7.84414139]
[1761994374437,8.58939535,186.37,186.36,2.88]
[1761994374935,8.58939535,186.37,186.36,78.56]
[1761994375431,8.58939535,186.37,186.36,83.52414139]
[1761994383626,8.60785243,186.37,186.36,83.52414139]
[1761994386644,8.60785243,186.37,186.36,78.56]
[1761994387942,8.60785243,186.37,186.36,85.20287239]
[1761994389949,4.33213317,186.37,186.36,85.20287239]
[1761994397149,2.69,186.4,186.36,85.20287239]
[1761994397356,8.51198608,186.39,186.38,7.70768209]
[1761994397546,8.51198608,186.39,186.38,83.32768209]
[1761994397746,11.21198608,186.39,186.38,80.58768209]
[1761994399649,11.21198608,186.39,186.38,4.96768209]
[1761994399856,2.7,186.38,186.36,33.58]
[1761994400062,11.21198608,186.37,186.36,33.58]
[1761994401056,2.82,186.36,186.34,4.96768209]
[1761994401252,11.33198608,186.35,186.34,4.96768209]
[1761994401752,11.33198608,186.35,186.33,75.64]
[1761994401753,2.82,186.34,186.33,75.64]
[1761994401952,11.33198608,186.34,186.33,75.64]
[1761994404563,2.82,186.33,186.32,4.96768209]
[1761994404854,2.82,186.32,186.3,4.96768209]
[1761994405059,1.82501316,186.35,186.29,80.60768209]
[1761994405060,11.33198608,186.31,186.29,80.60768209]
[1761994405262,15.4,186.43,186.29,80.60768209]
[1761994405263,11.33198608,186.3,186.29,80.60768209]
[1761994405455,11.33198608,186.3,186.28,4.96768209]
[1761994405656,8.51198608,186.29,186.28,7.82768209]
[1761994406456,8.51198608,186.29,186.28,2.86]
[1761994406657,8.51198608,186.29,186.27,7.82768209]
[1761994406857,4.32704818,186.28,186.27,7.82768209]
[1761994407063,4.32704818,186.28,186.27,2.86]
[1761994407465,4.32704818,186.28,186.27,7.82962962]
[1761994407670,8.51232517,186.28,186.27,2.86]
[1761994407857,11.33232517,186.28,186.26,83.48962962]
[1761994408063,4.32704818,186.27,186.26,83.48962962]
[1761994408268,4.32704818,186.27,186.26,80.62962962]
[1761994408467,7.14704818,186.27,186.26,80.62962962]
[1761994408768,2.82,186.26,186.25,4.96962962]
[1761994408956,2.82,186.25,186.23,89.97282411]
[1761994409155,4.32704818,186.24,186.23,92.83282411]
[1761994409359,2.82,186.25,186.23,92.83282411]
[1761994409559,2.82,186.25,186.23,87.86319449]
[1761994410156,11.32364595,186.24,186.23,9.34319449]
[1761994410372,7.14128603,186.24,186.23,9.34319449]
[1761994411264,2.82,186.24,186.23,9.34319449]
[1761994412369,7.13326538,186.24,186.23,9.34319449]
[1761994412671,11.30799479,186.24,186.23,9.34319449]
[1761994413273,7.13326538,186.24,186.23,9.34319449]
[1761994414371,2.82,186.24,186.23,9.34319449]
[1761994436490,7.11478439,186.24,186.23,9.34319449]
[1761994438387,11.29634032,186.24,186.23,9.34319449]
[1761994440491,2.72,186.23,186.15,4.96962962]
[1761994440792,1.82501316,186.29,186.17,2.76]
[1761994440793,2.72,186.21,186.17,2.76]
[1761994441395,2.72,186.19,186.16,75.68]
[1761994441900,2.72,186.19,186.16,2.76]
[1761994442103,7.02505297,186.18,186.13,2.76]
[1761994442296,2.72,186.18,186.13,2.76]
[1761994442893,11.2197554,186.17,186.13,2.76]
[1761994443194,2.72,186.17,186.13,2.76]
[1761994443395,4.31046844,186.16,186.13,2.76]
[1761994443695,7.03046844,186.16,186.13,2.76]
[1761994443994,2.72,186.16,186.13,2.76]
[1761994444498,4.31241209,186.15,186.13,2.76]
[1761994446298,2.72,186.16,186.13,2.76]
[1761994446602,8.51525991,186.15,186.13,2.76]
[1761994446899,2.72,186.16,186.13,2.76]
[1761994447090,8.51525991,186.15,186.13,2.76]
[1761994447290,2.72,186.16,186.14,2.76]
[1761994447491,4.31669162,186.15,186.14,2.76]
[1761994447806,2.72,186.23,186.15,2.76]
[1761994448002,4.14875729,186.22,186.16,2.76]
[1761994448202,6.86875729,186.21,186.16,2.76]
[1761994448398,4.14875729,186.2,186.16,2.76]
[1761994448597,4.14875729,186.19,186.16,2.76]
[1761994448798,4.14875729,186.18,186.16,2.76]
[1761994448999,2.72,186.21,186.16,2.76]
[1761994449200,4.1509518,186.2,186.16,2.76]
[1761994449493,4.1509518,186.19,186.16,2.76]
[1761994449693,4.1509518,186.18,186.17,2.76]
[1761994449892,4.1509518,186.22,186.17,2.76]
[1761994450091,4.1509518,186.21,186.17,2.76]
[1761994450297,4.1509518,186.2,186.17,2.76]
[1761994450504,4.1509518,186.19,186.17,2.76]
[1761994450806,4.1509518,186.18,186.17,2.76]
[1761994451409,4.1509518,186.18,186.17,7.72520713]
[1761994453597,4.1509518,186.18,186.17,8.80520713]
[1761994456102,4.1509518,186.18,186.17,3.84]
[1761994457416,2.72,186.23,186.18,2.95]
[1761994457604,2.72,186.23,186.19,2.95]
[1761994457605,4.16070634,186.22,186.19,2.95]
[1761994457905,4.16070634,186.21,186.19,2.95]
[1761994458100,4.16070634,186.2,186.19,2.95]
[1761994459809,8.40414068,186.2,186.19,2.95]
[1761994460109,8.40414068,186.2,186.19,7.92883068]
[1761994472919,11.07414068,186.2,186.19,4.97883068]
[1761994475122,8.40414068,186.2,186.19,7.66883068]
[1761994477319,4.24343434,186.2,186.19,7.66883068]
[1761994477721,6.91343434,186.2,186.19,4.97883068]
[1761994483326,4.24343434,186.2,186.19,7.66883068]
[1761994489230,4.24343434,186.2,186.19,2.69]
[1761994493733,2.89,186.19,186.18,6.64287239]
[1761994493937,2.89,186.18,186.17,6.64287239]
[1761994494231,7.13343434,186.18,186.17,6.64287239]
[1761994500045,2.89,186.17,186.16,6.64287239]
[1761994500346,2.89,186.16,186.15,46.88287239]
[1761994500545,7.13343434,186.16,186.14,6.64287239]
[1761994500844,7.13343434,186.15,186.14,6.64287239]
[1761994503343,7.13343434,186.15,186.13,9.43287239]
[1761994503645,4.24343434,186.14,186.13,9.43287239]
[1761994504147,7.13343434,186.14,186.13,6.64287239]
[1761994504450,7.13343434,186.14,186.12,9.43287239]
[1761994504639,4.24343434,186.13,186.12,9.43287239]
[1761994505142,4.24343434,186.13,186.12,2.79]
[1761994505333,4.24343434,186.13,186.12,7.78000712]
[1761994506748,4.24343434,186.13,186.12,2.79]
[1761994508951,2.89,186.16,186.12,2.79]
[1761994509154,11.76166745,186.15,186.13,7.77462522]
[1761994509352,8.87166745,186.14,186.13,7.77462522]
[1761994509946,8.87166745,186.14,186.13,2.79]
[1761994510352,8.87166745,186.14,186.13,7.77407264]
[1761994515060,8.87166745,186.14,186.13,2.79]
[1761994515257,4.70929793,186.14,186.13,2.79]
[1761994517954,2.89,186.18,186.13,2.79]
[1761994518258,16.44120244,186.32,186.16,2.92]
[1761994518259,4.15963532,186.17,186.16,2.92]
[1761994520667,4.15963532,186.17,186.16,7.90121133]
[1761994525969,7.04963532,186.17,186.16,4.98121133]
[1761994526469,2.89,186.16,186.14,80.68121133]
[1761994526771,7.04963532,186.15,186.14,80.68121133]
[1761994527066,7.04963532,186.15,186.14,75.7]
[1761994529870,11.6900144,186.15,186.14,75.7]
[1761994533761,8.8000144,186.15,186.12,4.98121133]
[1761994533959,2.89,186.13,186.12,7.68121133]
[1761994534164,8.80368907,186.13,186.12,7.68121133]
[1761994535174,8.80368907,186.13,186.12,2.7]
[1761994538979,8.82061061,186.13,186.12,2.7]
[1761994540972,11.71061061,186.13,186.12,2.7]
[1761994541171,11.71061061,186.13,186.11,85.04287239]
[1761994541475,11.71061061,186.12,186.11,85.04287239]
[1761994541978,11.71061061,186.12,186.11,82.34287239]
[1761994543475,8.82061061,186.12,186.11,85.04287239]
[1761994546374,11.65061061,186.12,186.11,82.34287239]
[1761994546680,11.65061061,186.12,186.11,78.44]
[1761994549184,11.6556688,186.12,186.11,78.44]
[1761994549782,11.6556688,186.12,186.11,75.7]
[1761994549970,11.6556688,186.12,186.11,80.69140424]
[1761994559993,11.6556688,186.12,186.11,75.7]
[1761994567203,8.8256688,186.12,186.11,78.44]
[1761994567696,11.6556688,186.12,186.11,78.44]
[1761994567900,11.6556688,186.12,186.11,75.7]
[1761994569115,11.6556688,186.12,186.11,78.44]
[1761994570325,11.6556688,186.12,186.11,4.99140424]
[1761994570502,2.83,186.11,186.09,4.99355606]
[1761994570708,11.6556688,186.1,186.09,4.99355606]
[1761994571018,8.8256688,186.1,186.09,7.73355606]
[1761994573421,8.8256688,186.1,186.09,2.74]
[1761994580121,2.84,186.09,186.07,78.46]
[1761994580320,8.8256688,186.08,186.07,78.46]
[1761994580918,11.6656688,186.08,186.07,78.46]
[1761994581312,8.8256688,186.08,186.07,78.46]
[1761994582227,11.6656688,186.08,186.07,75.7]
[1761994582820,2.84,186.07,186.04,6.64287239]
[1761994583014,11.6656688,186.06,186.04,6.64287239]
[1761994583216,8.8256688,186.05,186.03,85.12287239]
[1761994583416,8.8256688,186.04,186.03,78.48]
[1761994591026,4.64618644,186.04,186.03,78.48]
[1761994592629,2.84,186.11,186.04,2.76]
[1761994592830,8.93882135,186.1,186.04,2.76]
[1761994593019,11.77882135,186.09,186.04,2.76]
[1761994593223,8.93882135,186.08,186.04,2.76]
[1761994593535,8.93882135,186.07,186.04,2.76]
[1761994593720,8.93882135,186.06,186.04,2.76]
[1761994593925,4.6397262,186.05,186.04,2.76]
[1761994607455,7.4797262,186.05,186.03,82.36287239]
[1761994607745,4.6397262,186.04,186.03,85.05287239]
[1761994614448,4.6397262,186.04,186.03,78.41]
[1761994618648,2.84,186.09,186.04,2.69]
[1761994618855,8.93948204,186.08,186.06,2.69]
[1761994619151,8.93948204,186.07,186.06,2.69]
[1761994622956,8.93953558,186.07,186.06,2.69]